bitfinex/quotes_ETHUSD_20240730
["timestamp","ask_amount","ask_price","bid_price","bid_amount"]
[1722305959178,10.71856172,3315.2,3315.1,35.0]
[1722305959342,13.24088703,3315.2,3315.1,35.0]
[1722305959546,11.36541469,3315.2,3315.1,35.0]
[1722305959963,13.24124256,3315.2,3315.1,35.0]
[1722305960164,11.10698938,3315.2,3315.1,35.0]
[1722305960379,8.69386938,3315.2,3315.1,35.0]
[1722305960580,7.71788793,3315.2,3315.1,35.0]
[1722305960738,7.01769498,3315.2,3315.1,35.0]
[1722305961073,6.1550302,3315.2,3315.1,35.0]
[1722305961283,2.49086793,3315.2,3315.1,35.0]
[1722305961475,1.01610386,3315.2,3315.1,35.0]
[1722305961676,0.07774793,3315.2,3315.1,38.04901288]
[1722305962056,2.41298,3315.4,3315.1,38.04901288]
[1722305962254,0.07768457,3315.2,3315.1,3.04901288]
[1722305962454,3.35120593,3315.6,3314.8,4.83779]
[1722305962455,3.35120593,3315.6,3314.9,2.47365289]
[1722305962656,0.07787461,3315.2,3314.9,2.47365289]
[1722305962952,0.07787461,3315.1,3314.9,2.47365289]
[1722305963157,2.41291,3315.5,3315.0,35.0]
[1722305963355,2.41291,3315.5,3315.0,38.04901288]
[1722305963553,2.41291,3315.5,3315.0,3.04901288]
[1722305963747,2.41291,3315.5,3314.8,2.4244]
[1722305963748,0.93835593,3315.4,3314.8,2.4244]
[1722305964148,5.76431593,3315.4,3315.3,35.0]
[1722305964962,4.82596,3315.4,3315.3,35.0]
[1722305965159,6.07673576,3315.4,3315.3,35.0]
[1722305965380,4.82596,3315.4,3315.3,35.0]
[1722305965579,5.70618597,3315.4,3315.3,35.0]
[1722305965884,4.82596,3315.4,3315.3,35.0]
[1722305966182,3.66374262,3315.4,3315.3,35.0]
[1722305966481,2.41298,3315.4,3315.3,35.0]
[1722305966984,3.35111669,3315.6,3315.4,2.4622]
[1722305967482,2.41286,3315.6,3315.4,2.4622]
[1722305968344,0.93787494,3315.7,3315.4,5.51121288]
[1722305968551,2.41277,3315.7,3315.4,2.4622]
[1722305968745,2.41277,3315.7,3315.5,35.0]
[1722305968954,0.93787494,3315.8,3315.5,35.0]
[1722305969189,2.41283,3315.6,3315.5,35.0]
[1722305969785,4.82566,3315.6,3315.5,35.0]
[1722305970156,6.46493843,3315.6,3315.5,35.0]
[1722305971057,5.52706349,3315.6,3315.5,35.0]
[1722305971685,6.77763016,3315.6,3315.5,35.0]
[1722305971876,4.82566,3315.6,3315.5,35.0]
[1722305972286,6.07622667,3315.6,3315.5,35.0]
[1722305972659,6.07655114,3315.6,3315.5,35.0]
[1722305972801,2.41283,3315.6,3315.5,35.0]
[1722305973296,0.93820429,3315.6,3315.5,35.0]
[1722305973504,0.93820429,3315.8,3315.5,38.04901288]
[1722305973699,8.30820429,3316.1,3315.6,2.41283]
[1722305973933,0.07821096,3315.7,3315.6,2.47314355]
[1722305974090,3.35056429,3316.3,3315.6,37.47314355]
[1722305974440,2.41236,3316.3,3315.8,2.3748]
[1722305974590,3.35060429,3316.2,3315.8,2.3748]
[1722305974777,2.41255,3316.0,3315.8,2.3748]
[1722305974977,2.41255,3316.0,3315.9,35.0]
[1722305975820,3.35063429,3316.2,3315.9,35.0]
[1722305975975,2.41243,3316.2,3315.9,35.0]
[1722305976385,3.35063429,3316.2,3315.9,35.0]
[1722305976731,2.41243,3316.2,3315.9,35.0]
[1722305977240,0.93820429,3316.3,3316.0,2.2691]
[1722305977420,3.35054429,3316.3,3316.0,2.2691]
[1722305977812,3.35040812,3316.3,3316.0,2.2691]
[1722305978488,2.41241,3316.2,3316.0,2.2691]
[1722305978808,2.41241,3316.2,3316.1,35.0]
[1722305979015,4.82482,3316.2,3316.1,35.0]
[1722305979243,5.76288812,3316.2,3316.1,35.0]
[1722305979542,3.35047812,3316.2,3316.1,35.0]
[1722305980302,3.35045812,3316.2,3316.1,35.0]
[1722305982552,5.76284812,3316.2,3316.1,35.0]
[1722305982847,5.76334555,3316.2,3316.1,35.0]
[1722305983011,3.35095555,3316.2,3316.1,35.0]
[1722305983642,5.76334555,3316.2,3316.1,35.0]
[1722305984664,4.82478,3316.2,3316.1,35.0]
[1722305985207,2.41239,3316.2,3316.1,35.0]
[1722305986816,6.07692967,3316.2,3316.1,35.0]
[1722305987514,6.84117706,3316.2,3316.1,35.0]
[1722305988348,6.07692967,3316.2,3316.1,35.0]
[1722305988500,4.82478,3316.2,3316.1,35.0]
[1722305988699,2.41239,3316.2,3316.1,35.0]
[1722305988930,3.4299666,3316.2,3316.1,35.0]
[1722305989133,5.8423566,3316.2,3316.1,35.0]
[1722305989336,4.90347757,3316.2,3316.1,35.0]
[1722305989500,2.49108757,3316.2,3316.1,35.0]
[1722305990231,3.42992727,3316.2,3316.1,35.0]
[1722305991736,5.84231727,3316.2,3316.1,35.0]
[1722305992042,5.84233929,3316.2,3316.1,35.0]
[1722305992235,4.90347757,3316.2,3316.1,35.0]
[1722305995744,6.155254,3316.2,3316.1,35.0]
[1722305996909,3.742864,3316.2,3316.1,35.0]
[1722305997111,3.43040479,3316.2,3316.1,35.0]
[1722305998052,2.49108757,3316.2,3316.1,35.0]
[1722305998435,5.84279479,3316.2,3316.1,35.0]
[1722305999062,10.41102469,3316.2,3316.1,35.0]
[1722305999234,12.83975757,3316.2,3316.1,35.0]
[1722305999434,11.21992824,3316.2,3316.1,35.0]
[1722306000434,11.21992824,3316.2,3315.0,2.2774]
[1722306000435,2.4132,3315.1,3315.0,2.2774]
[1722306000758,2.4132,3315.1,3314.2,2.2624]
[1722306000759,2.41347,3314.8,3314.2,2.2624]
[1722306001064,0.07842064,3314.7,3314.2,2.2624]
[1722306001434,0.07842064,3314.7,3314.6,35.0]
[1722306001778,2.41347,3314.8,3314.6,35.0]
[1722306001979,0.07831777,3314.7,3314.2,2.2624]
[1722306002136,0.07831777,3314.7,3314.3,0.467632]
[1722306002343,2.41347,3314.8,3314.3,3.467632]
[1722306002738,0.07831777,3314.7,3314.2,2.2624]
[1722306002981,2.41356,3314.6,3314.2,2.2624]
[1722306003341,2.41378,3314.3,3314.2,2.2624]
[1722306003540,0.93943277,3314.8,3313.4,2.41442]
[1722306003541,2.41391,3314.2,3313.5,2.3519]
[1722306003779,0.0778271,3314.1,3313.5,2.3519]
[1722306004099,0.0778271,3314.1,3313.6,0.476632]
[1722306004251,2.414,3314.0,3313.5,2.3519]
[1722306004460,2.46890105,3314.0,3313.5,2.3519]
[1722306004782,0.07770834,3314.0,3313.6,2.41428]
[1722306004958,2.41364,3314.5,3313.7,4.85266]
[1722306005141,2.41364,3314.5,3313.8,0.06034278]
[1722306005340,0.07749061,3314.4,3313.9,0.49130028]
[1722306005576,0.07749061,3314.4,3314.0,0.06034279]
[1722306006073,2.49121061,3314.4,3314.0,0.06034279]
[1722306006296,2.49121061,3314.4,3313.9,0.49130028]
[1722306007171,2.49123061,3314.4,3313.9,0.55164315]
[1722306007700,2.49123061,3314.4,3313.9,0.49130028]
[1722306007859,2.49123061,3314.4,3313.7,2.4385]
[1722306008202,2.49123061,3314.4,3313.7,5.4385]
[1722306008487,2.41393,3314.1,3313.7,5.4385]
[1722306008636,0.07749061,3314.4,3313.0,2.3282]
[1722306008956,0.07738374,3314.0,3313.1,0.474299]
[1722306009298,2.41401,3314.0,3313.0,2.3282]
[1722306009460,2.49147374,3313.9,3313.1,2.41459]
[1722306009785,2.41423,3313.7,3313.2,0.474279]
[1722306009943,2.41423,3313.7,3313.0,2.3282]
[1722306009944,2.41432,3313.6,3313.0,2.3282]
[1722306010142,0.0772293,3313.5,3313.0,2.3282]
[1722306011301,2.4915893,3313.5,3313.0,2.3282]
[1722306011456,2.4915893,3313.5,3312.6,3.0]
[1722306011457,0.0772293,3313.5,3312.6,5.4931]
[1722306011671,2.41444,3313.4,3312.7,0.06036661]
[1722306011856,2.41465,3313.1,3312.7,0.06036661]
[1722306012201,2.41473,3313.0,3312.6,2.4931]
[1722306012498,2.49174545,3313.0,3312.6,2.4931]
[1722306012788,2.4148,3312.9,3312.6,2.4931]
[1722306012995,0.07684913,3312.8,3312.6,2.4931]
[1722306014498,2.49171913,3312.8,3312.6,2.4931]
[1722306015401,2.41494,3312.7,3312.6,2.4931]
[1722306015697,0.07661935,3312.7,3312.2,2.4931]
[1722306016021,0.07661935,3312.7,3312.3,0.06037147]
[1722306016306,2.41478,3313.0,3312.4,2.4931]
[1722306016444,2.41478,3313.0,3312.5,0.06036906]
[1722306016647,2.49104502,3312.9,3312.5,0.55723797]
[1722306016907,2.41487,3312.8,3312.4,2.4931]
[1722306017560,0.07627068,3312.7,3312.4,2.4931]
[1722306017755,2.41487,3312.8,3312.4,2.4931]
[1722306018000,0.0763539,3312.7,3312.4,2.4931]
[1722306018225,2.41487,3312.8,3312.4,2.4931]
[1722306018529,0.0763539,3312.6,3312.4,2.4931]
[1722306018730,2.41487,3312.8,3312.4,2.4931]
[1722306019254,0.0763539,3312.7,3312.4,2.4931]
[1722306019525,2.4148,3312.9,3312.2,3.0]
[1722306019732,0.0763539,3312.6,3312.0,5.4931]
[1722306019894,2.4148,3312.9,3312.0,7.90855]
[1722306020097,0.0763539,3312.5,3312.1,2.4931]
[1722306020301,0.0763539,3312.5,3312.1,5.4931]
[1722306020517,2.41488,3312.8,3312.2,0.790855]
[1722306020716,2.41476,3313.0,3312.3,0.06037233]
[1722306021030,2.41476,3313.0,3312.3,2.47560233]
[1722306021203,0.0762905,3312.9,3312.3,2.47560233]
[1722306022082,2.4910905,3312.9,3312.3,2.47560233]
[1722306022284,2.4910905,3312.9,3312.4,0.62664573]
[1722306022723,0.0762905,3312.9,3312.4,0.62664573]
[1722306022937,0.0762905,3312.9,3312.4,0.6870181]
[1722306023082,7.37,3313.4,3312.5,2.4931]
[1722306023286,7.37,3313.4,3313.1,4.90775]
[1722306023553,7.37,3313.4,3313.3,2.41451]
[1722306023695,2.414,3314.0,3313.3,2.41451]
[1722306023895,2.41416,3313.8,3313.1,4.90774]
[1722306024733,7.37,3314.3,3313.1,2.4931]
[1722306024734,2.41435,3313.6,3313.1,2.4931]
[1722306024888,2.2696,3314.1,3313.1,2.4931]
[1722306024889,2.41438,3313.5,3313.1,2.4931]
[1722306025294,2.41433,3313.6,3313.1,2.4931]
[1722306025509,2.41423,3313.7,3313.1,2.4931]
[1722306025759,4.68356,3314.1,3313.1,2.4931]
[1722306025901,2.41444,3313.4,3312.8,3.0]
[1722306026101,2.41429,3313.6,3312.8,5.41486]
[1722306026732,9.78423,3313.7,3312.8,3.0]
[1722306026901,2.41451,3313.3,3312.7,2.3415]
[1722306027102,2.41451,3313.3,3312.7,5.3415]
[1722306027624,2.41451,3313.3,3312.7,2.3415]
[1722306028246,2.41451,3313.3,3312.3,3.0]
[1722306028247,7.37,3313.7,3312.3,2.4852]
[1722306028536,2.41488,3312.8,3312.3,2.4852]
[1722306028696,2.41488,3312.8,3312.7,35.0]
[1722306030201,4.82976,3312.8,3312.7,35.0]
[1722306032302,2.41488,3312.8,3312.7,35.0]
[1722306032506,2.41474,3313.0,3312.7,35.0]
[1722306033655,2.41466,3313.1,3312.3,2.41523]
[1722306033856,0.11354556,3312.9,3312.3,2.898291]
[1722306034069,2.41466,3313.1,3312.8,35.0]
[1722306034539,2.41466,3313.1,3312.4,2.41515]
[1722306034738,2.41473,3313.0,3312.4,2.41515]
[1722306034935,2.41487,3312.8,3312.2,2.41525]
[1722306035337,2.41487,3312.8,3312.0,2.41545]
[1722306035534,2.41487,3312.8,3312.7,35.0]
[1722306036234,2.41473,3313.0,3312.7,35.0]
[1722306036434,2.41473,3313.0,3312.0,0.711594]
[1722306036755,2.41473,3313.0,3312.1,2.4756926]
[1722306037054,2.41473,3313.0,3312.9,35.0]
[1722306037461,2.4146,3313.2,3312.9,35.0]
[1722306037752,2.41466,3313.1,3312.3,2.41518]
[1722306037951,2.41466,3313.1,3312.3,2.898228]
[1722306038146,2.41466,3313.1,3313.0,35.0]
[1722306041076,4.82936,3313.1,3313.0,35.0]
[1722306041434,7.16286,3313.1,3313.0,35.0]
[1722306041684,8.120601,3313.1,3313.0,35.0]
[1722306042935,11.085301,3313.1,3313.0,35.0]
[1722306044863,8.670601,3313.1,3313.0,35.0]
[1722306046074,8.670601,3313.1,3311.9,2.2849]
[1722306046075,2.41514,3312.5,3311.9,2.2849]
[1722306046382,2.41514,3312.5,3312.4,35.0]
[1722306047834,4.8303,3312.5,3312.4,35.0]
[1722306048470,2.41525,3312.3,3311.9,2.2849]
[1722306048913,0.11331565,3312.2,3312.0,35.0]
[1722306049108,2.41538,3312.1,3312.0,35.0]
[1722306049597,2.898443,3312.1,3312.0,35.0]
[1722306050125,3.0116754,3312.1,3312.0,35.0]
[1722306050593,0.1132324,3312.1,3312.0,35.0]
[1722306050800,2.41528,3312.3,3312.0,35.0]
[1722306051009,2.52852068,3312.2,3312.0,35.0]
[1722306052310,2.52852068,3312.2,3311.6,4.87104]
[1722306052712,2.52852068,3312.2,3312.1,35.0]
[1722306053448,2.52852068,3312.2,3312.1,38.04901288]
[1722306053449,0.11320068,3312.2,3312.1,38.04901288]
[1722306053722,0.11320068,3312.2,3312.1,45.19157288]
[1722306053918,7.37,3312.8,3312.1,40.36081288]
[1722306054077,7.37,3312.8,3312.5,2.41505]
[1722306054278,0.11318878,3312.7,3312.5,2.41505]
[1722306054483,0.11318878,3312.7,3312.1,2.3118]
[1722306054484,0.11318878,3312.7,3312.6,37.41502]
[1722306054713,9.78445,3313.4,3312.6,39.81762]
[1722306054917,0.11333942,3312.7,3312.6,4.81762]
[1722306055130,2.41459,3313.2,3312.6,4.81762]
[1722306055299,2.41459,3313.2,3312.6,2.4026]
[1722306055532,2.41459,3313.2,3313.1,35.0]
[1722306056936,11.03744144,3313.4,3313.1,35.0]
[1722306057228,2.41451,3313.3,3313.1,35.0]
[1722306058102,2.41458,3313.2,3313.1,35.0]
[1722306058417,3.66757144,3313.2,3313.1,35.0]
[1722306059862,2.41458,3313.2,3313.1,35.0]
[1722306060156,1.25299144,3313.2,3313.1,35.0]
[1722306060459,3.66751144,3313.3,3313.1,35.0]
[1722306060805,1.25299144,3313.3,3313.1,35.0]
[1722306061052,1.25299144,3313.5,3313.1,35.0]
[1722306061259,1.25299144,3313.5,3312.8,2.4148]
[1722306061260,3.66728144,3313.6,3312.8,2.4148]
[1722306061459,3.66728144,3313.6,3313.0,2.41472]
[1722306061460,2.41429,3313.6,3313.0,2.41472]
[1722306061667,2.41429,3313.6,3313.5,35.0]
[1722306061861,3.66977664,3313.6,3313.5,35.0]
[1722306062071,2.41429,3313.6,3313.5,35.0]
[1722306062209,1.25548664,3313.7,3313.5,35.0]
[1722306062210,3.66971664,3313.7,3313.5,35.0]
[1722306062562,9.78407,3313.9,3313.5,35.0]
[1722306062563,1.25548664,3313.9,3313.5,35.0]
[1722306062766,2.41429,3313.6,3313.5,35.0]
[1722306062909,4.82858,3313.6,3313.5,35.0]
[1722306063128,6.08406664,3313.6,3313.5,35.0]
[1722306063621,4.82858,3313.6,3313.5,35.0]
[1722306063857,4.94264465,3313.6,3313.5,35.0]
[1722306064386,5.46515743,3313.6,3313.5,35.0]
[1722306064545,3.7832953,3313.6,3313.5,35.0]
[1722306064725,1.3690053,3313.6,3313.5,35.0]
[1722306064926,0.11406465,3313.6,3313.5,35.0]
[1722306065121,1.25494065,3313.9,3313.5,35.0]
[1722306065343,0.11403295,3313.6,3313.5,35.0]
[1722306065540,2.41407,3313.9,3313.5,35.0]
[1722306065770,0.11403295,3313.6,3313.5,35.0]
[1722306065951,1.25494065,3313.8,3313.5,35.0]
[1722306066150,0.11403295,3313.6,3313.5,35.0]
[1722306066468,0.11413198,3313.6,3313.5,35.0]
[1722306067056,2.41425,3313.7,3313.5,35.0]
[1722306067326,2.52842198,3313.6,3313.5,35.0]
[1722306067574,0.11413198,3313.6,3313.5,35.0]
[1722306068391,3.66901065,3313.9,3313.5,35.0]
[1722306068527,0.11409238,3313.6,3313.5,35.0]
[1722306068726,2.41407,3313.9,3313.5,35.0]
[1722306068930,0.11409238,3313.6,3313.5,35.0]
[1722306069192,2.41407,3313.9,3313.5,35.0]
[1722306069193,2.4142,3313.8,3313.5,35.0]
[1722306069467,4.03604172,3313.8,3313.5,35.0]
[1722306069628,1.36904493,3313.7,3313.5,35.0]
[1722306070041,2.52832428,3313.7,3313.5,35.0]
[1722306070282,2.41429,3313.6,3313.5,35.0]
[1722306070787,3.78332303,3313.6,3313.5,35.0]
[1722306071149,6.19761303,3313.6,3313.5,35.0]
[1722306071481,10.0518754,3313.6,3313.5,35.0]
[1722306071635,2.41496,3312.7,3312.0,12.09685]
[1722306071946,0.11404881,3312.6,3312.1,2.41537]
[1722306072144,0.11404881,3312.6,3312.2,35.0]
[1722306072485,2.41496,3312.7,3312.1,3.1346]
[1722306072683,2.41496,3312.7,3312.1,0.71923]
[1722306072985,3.66907579,3312.9,3312.1,0.71923]
[1722306072986,0.11404881,3312.6,3312.1,3.13455]
[1722306073467,0.11391011,3312.5,3312.1,3.13455]
[1722306073678,0.11391011,3312.5,3312.4,2.41516]
[1722306073990,1.25426579,3313.1,3312.5,2.41504]
[1722306074210,1.25426579,3313.1,3312.6,2.4380693]
[1722306074345,2.41465,3313.1,3312.6,2.4380693]
[1722306074558,2.41473,3313.0,3312.6,2.4380693]
[1722306074890,2.41481,3312.9,3312.6,2.3777]
[1722306075481,4.82966,3312.9,3312.8,35.0]
[1722306075648,2.41481,3312.9,3312.8,35.0]
[1722306076486,1.25440433,3313.1,3312.8,35.0]
[1722306076703,3.66892433,3313.3,3312.8,40.42671288]
[1722306077045,1.25440433,3313.3,3312.8,40.42671288]
[1722306077399,2.41474,3313.0,3312.8,35.0]
[1722306078299,2.4148,3312.9,3312.8,35.0]
[1722306078943,2.52861503,3312.9,3312.8,35.0]
[1722306079153,3.78301936,3312.9,3312.8,35.0]
[1722306080062,2.52861503,3312.9,3312.8,35.0]
[1722306085205,0.11381503,3312.9,3312.8,38.04901288]
[1722306085362,0.11381503,3312.9,3312.8,40.46931288]
[1722306085561,11.03770841,3313.6,3313.1,2.4146]
[1722306085562,7.37,3313.6,3313.1,2.4146]
[1722306085801,2.4142,3313.8,3313.2,2.71639729]
[1722306086294,2.4142,3313.8,3313.6,35.0]
[1722306086601,2.41421,3313.7,3313.6,35.0]
[1722306090530,6.08033597,3313.7,3313.6,35.0]
[1722306090730,4.82842,3313.7,3313.6,35.0]
[1722306090875,5.779264,3313.7,3313.6,35.0]
[1722306091938,2.41421,3313.7,3313.6,35.0]
[1722306093976,2.5283103,3313.7,3313.6,35.0]
[1722306094376,0.1141003,3313.7,3313.6,35.0]
[1722306094619,1.25217945,3313.9,3313.6,35.0]
[1722306094816,7.37,3314.0,3313.6,38.04901288]
[1722306095294,0.11418747,3313.9,3313.6,35.0]
[1722306096007,1.25217945,3314.2,3313.6,35.0]
[1722306096008,3.66602945,3314.2,3313.6,35.0]
[1722306096408,3.66602945,3314.2,3313.6,37.41427]
[1722306096722,2.52811747,3314.1,3313.6,35.0]
[1722306097036,2.52811747,3314.1,3313.5,2.2892]
[1722306097220,2.52811747,3314.1,3313.6,0.06035052]
[1722306097393,2.52811747,3314.1,3314.0,35.0]
[1722306097596,6.19427692,3314.1,3314.0,35.0]
[1722306097811,6.1948829,3314.1,3314.0,35.0]
[1722306098195,5.71817208,3314.1,3314.0,35.0]
[1722306098613,7.28464394,3314.1,3314.0,35.0]
[1722306099303,10.77321782,3314.1,3314.0,35.0]
[1722306099501,2.41428,3313.7,3312.7,2.2934]
[1722306099698,2.41475,3313.0,3312.7,2.2934]
[1722306099894,2.41465,3313.1,3312.9,35.0]
[1722306100389,0.11429838,3313.0,3312.9,35.0]
[1722306100586,3.66759725,3313.3,3312.9,35.0]
[1722306100799,0.11409238,3313.2,3312.9,35.0]
[1722306101225,0.11409238,3313.1,3312.9,35.0]
[1722306101414,1.25304725,3313.3,3312.9,35.0]
[1722306101611,2.41472,3313.0,3312.9,35.0]
[1722306102246,2.52861428,3313.0,3312.9,35.0]
[1722306102851,4.94333428,3313.0,3312.9,35.0]
[1722306103018,7.05326171,3313.0,3312.9,35.0]
[1722306103218,4.63854171,3313.0,3312.9,35.0]
[1722306103535,7.36647977,3313.0,3312.9,35.0]
[1722306103717,5.80092171,3313.0,3312.9,35.0]
[1722306104107,8.76564171,3313.0,3312.9,35.0]
[1722306105510,6.35092171,3313.0,3312.9,35.0]
[1722306106031,5.80092171,3313.0,3312.9,35.0]
[1722306106235,4.94333428,3313.0,3312.9,35.0]
[1722306106408,0.11389428,3313.0,3312.9,35.0]
[1722306107143,0.1135059,3313.0,3312.9,35.0]
[1722306107517,2.41467,3313.1,3312.9,35.0]
[1722306107725,0.11358517,3313.0,3312.7,2.4498]
[1722306107923,0.11358517,3313.0,3312.7,2.43192275]
[1722306108149,0.11358517,3313.0,3312.9,35.0]
[1722306108376,4.94302517,3313.0,3312.9,35.0]
[1722306108666,6.19560895,3313.0,3312.9,35.0]
[1722306108868,3.46766169,3313.0,3312.9,35.0]
[1722306109064,2.52830517,3313.0,3312.9,35.0]
[1722306110263,3.78088895,3313.0,3312.9,35.0]
[1722306111129,4.94302517,3313.0,3312.9,35.0]
[1722306111464,6.19547768,3313.0,3312.9,35.0]
[1722306111660,4.94302517,3313.0,3312.9,35.0]
[1722306111887,2.52830517,3313.0,3312.9,35.0]
[1722306112050,3.78105625,3313.0,3312.9,35.0]
[1722306112438,3.46795022,3313.0,3312.9,35.0]
[1722306113075,3.46797491,3313.0,3312.9,35.0]
[1722306113256,2.52830517,3313.0,3312.9,35.0]
[1722306113464,3.78105625,3313.0,3312.9,35.0]
[1722306113641,6.19577625,3313.0,3312.9,35.0]
[1722306113975,3.78105625,3313.0,3312.9,35.0]
[1722306114192,6.19577625,3313.0,3312.9,35.0]
[1722306114644,3.78105625,3313.0,3312.9,35.0]
[1722306114843,6.19673917,3313.0,3312.9,35.0]
[1722306115294,4.94302517,3313.0,3312.9,35.0]
[1722306115504,2.52830517,3313.0,3312.9,35.0]
[1722306115641,3.78249481,3313.0,3312.9,35.0]
[1722306115865,2.52830517,3313.0,3312.9,35.0]
[1722306116068,3.78249481,3313.0,3312.9,35.0]
[1722306116509,1.36777481,3313.0,3312.9,35.0]
[1722306116799,1.36777481,3313.0,3312.9,38.04901288]
[1722306116800,0.11358517,3313.0,3312.9,38.04901288]
[1722306117517,0.11358517,3313.0,3312.9,40.52471288]
[1722306117665,0.94068916,3313.3,3312.9,40.52471288]
[1722306118067,0.1138071,3313.2,3313.0,2.47507403]
[1722306118273,0.94068916,3313.4,3313.1,3.45610869]
[1722306118584,0.94068916,3313.6,3313.3,37.41446]
[1722306118785,8.93763386,3313.9,3313.4,0.06035285]
[1722306118786,0.94068916,3313.7,3313.4,0.06035285]
[1722306118987,0.94068916,3313.7,3313.1,1.04145869]
[1722306119165,0.94068916,3313.6,3313.2,0.34561387]
[1722306119367,0.94068916,3313.6,3313.5,35.0]
[1722306121093,3.35445129,3313.6,3313.5,35.0]
[1722306121319,3.66783839,3313.6,3313.5,35.0]
[1722306121520,2.41429,3313.6,3313.5,35.0]
[1722306122014,3.66783839,3313.6,3313.5,35.0]
[1722306122711,2.41429,3313.6,3313.5,35.0]
[1722306122919,3.35483123,3313.6,3313.5,35.0]
[1722306123066,7.09777645,3313.6,3313.5,35.0]
[1722306123276,4.82858,3313.6,3313.5,35.0]
[1722306123716,6.08296829,3313.6,3313.5,35.0]
[1722306124032,6.19713992,3313.6,3313.5,35.0]
[1722306124220,4.94275163,3313.6,3313.5,35.0]
[1722306124824,6.19738625,3313.6,3313.5,35.0]
[1722306125021,5.71928594,3313.6,3313.5,35.0]
[1722306125234,8.13357594,3313.6,3313.5,35.0]
[1722306125434,10.5651242,3313.6,3313.5,35.0]
[1722306125863,8.40979184,3313.6,3313.5,35.0]
[1722306126079,2.41453,3313.3,3312.5,2.2767]
[1722306126374,0.94090857,3313.1,3312.5,2.2767]
[1722306126662,3.35555857,3313.1,3313.0,35.0]
[1722306126866,2.41453,3313.3,3313.0,35.0]
[1722306127033,0.11409636,3313.1,3313.0,35.0]
[1722306127256,0.94083827,3313.2,3313.0,35.0]
[1722306127583,0.11400919,3313.1,3313.0,35.0]
[1722306127954,1.05484746,3313.1,3313.0,35.0]
[1722306128154,0.11400919,3313.1,3313.0,35.0]
[1722306128553,1.05484746,3313.1,3313.0,35.0]
[1722306128769,5.88414746,3313.1,3313.0,35.0]
[1722306129093,4.94330919,3313.1,3313.0,35.0]
[1722306129253,6.19771262,3313.1,3313.0,35.0]
[1722306130178,4.94330919,3313.1,3313.0,35.0]
[1722306130378,5.59445337,3313.1,3313.0,35.0]
[1722306131054,7.16258596,3313.1,3313.0,35.0]
[1722306131754,5.59445337,3313.1,3313.0,35.0]
[1722306131988,6.19674201,3313.1,3313.0,35.0]
[1722306132393,4.94330919,3313.1,3313.0,35.0]
[1722306133690,6.50977673,3313.1,3313.0,35.0]
[1722306135088,4.94330919,3313.1,3313.0,35.0]
[1722306140532,2.41541,3312.1,3311.7,2.4084]
[1722306140839,2.41546,3312.0,3311.7,2.4084]
[1722306141143,2.41546,3312.0,3311.9,35.0]
[1722306141144,2.52910462,3312.0,3311.9,35.0]
[1722306142348,4.94462462,3312.0,3311.9,35.0]
[1722306142555,5.77454376,3312.0,3311.9,35.0]
[1722306142760,6.19668245,3312.0,3311.9,35.0]
[1722306142910,4.94462462,3312.0,3311.9,35.0]
[1722306143241,6.19669462,3312.0,3311.9,35.0]
[1722306144660,4.94462462,3312.0,3311.9,35.0]
[1722306144816,5.59559786,3312.0,3311.9,35.0]
[1722306145033,2.41598,3311.3,3311.0,2.3184]
[1722306145216,2.41613,3311.1,3310.4,2.3184]
[1722306145432,2.41613,3311.1,3311.0,35.0]
[1722306146525,2.5289897,3311.1,3311.0,35.0]
[1722306146951,5.88347134,3311.1,3311.0,35.0]
[1722306147114,5.88347134,3311.1,3309.8,2.41704]
[1722306147115,2.4165,3310.6,3310.1,2.455]
[1722306147314,2.41656,3310.5,3310.1,2.455]
[1722306147514,2.41656,3310.5,3310.4,35.0]
[1722306147953,2.41641,3310.7,3310.4,35.0]
[1722306148478,2.41649,3310.6,3310.4,35.0]
[1722306149214,2.41655,3310.5,3310.4,35.0]
[1722306149417,4.8331,3310.5,3310.4,35.0]
[1722306149652,4.8331,3310.5,3309.7,2.4896]
[1722306149653,0.55,3310.5,3309.7,2.4896]
[1722306149841,2.672,3310.7,3309.7,2.4896]
[1722306149842,2.41688,3310.1,3309.7,2.4896]
[1722306150169,2.41677,3310.2,3309.8,35.0]
[1722306150712,2.41662,3310.4,3309.8,35.0]
[1722306150913,2.41678,3310.2,3309.8,35.0]
[1722306151340,2.41685,3310.1,3309.8,35.0]
[1722306151575,0.72736497,3310.6,3309.8,35.0]
[1722306151576,2.41679,3310.2,3309.8,35.0]
[1722306151713,2.41699,3309.9,3309.8,35.0]
[1722306151917,4.83398,3309.9,3309.8,35.0]
[1722306153140,2.41699,3309.9,3309.8,35.0]
[1722306153887,0.11176875,3309.9,3309.8,35.0]
[1722306154181,2.41699,3309.9,3309.8,35.0]
[1722306154392,0.11176875,3309.9,3309.8,35.0]
[1722306154676,2.41677,3310.2,3309.8,35.0]
[1722306154898,0.11162189,3309.9,3309.8,35.0]
[1722306155116,2.41692,3310.0,3309.8,35.0]
[1722306155263,0.11162189,3309.9,3309.8,35.0]
[1722306155600,2.658447,3310.2,3309.8,35.0]
[1722306155770,0.11151869,3309.9,3309.8,35.0]
[1722306155974,2.41699,3309.9,3309.8,35.0]
[1722306156178,5.18724929,3309.9,3309.8,35.0]
[1722306157000,2.52856029,3309.9,3309.8,35.0]
[1722306157712,0.11157029,3309.9,3309.8,35.0]
[1722306158476,2.41662,3310.4,3309.8,35.0]
[1722306158816,2.41682,3310.2,3309.8,35.0]
[1722306158973,0.55,3310.3,3309.7,4.91663]